fUSD/lending_fUSD_20240902
["ID","MTS","AMOUNT","RATE_DAILY","PERIOD"]
[336965141,1725266177424,3057.0,0.000132,120]
[336965142,1725266493170,200.0,0.00010934,2]
[336965143,1725266554424,-80.03106483,0.00011,2]
[336965144,1725266601114,178.45393629,0.00010959,2]
[336965145,1725266601142,3.35606371,0.00010959,2]
[336965147,1725266617932,200.0,0.00010795,2]
[336965148,1725266681382,-176.15632561,0.000119,2]
[336965149,1725266681405,-563.61271786,0.000119,2]
[336965150,1725266681428,-150.0,0.00012,2]
[336965151,1725266681461,-563.61271786,0.0001235,2]
[336965152,1725266681486,-563.61271786,0.000128,2]
[336965153,1725266681510,-309.7485,0.000129,2]
[336965154,1725266681533,-165.63091281,0.00013599,2]
[336965155,1725266681558,-150.44,0.00013699,2]
[336965161,1725266743287,200.0,0.00013494,2]
[336965162,1725266805664,550.0,0.00011,2]
[336965163,1725266807222,600.0,0.00013,2]
[336965170,1725266868949,183.2610944,0.00012806,2]
[336965173,1725267031582,-309.03,0.00014817,2]
[336965174,1725267031593,-165.47941094,0.000149,2]
[336965175,1725267031602,-101.51058906,0.00015,2]
[336965844,1725267039574,-548.48941094,0.00015,2]
[336965845,1725267039584,-1000.0,0.00015218,2]
[336965846,1725267039594,-1000.0,0.00015219,2]
[336965848,1725267039604,-746.18,0.00016,2]
[336965850,1725267039614,-1711.87,0.00016232,2]
[336965852,1725267039624,-499.99,0.00016232,2]
[336965854,1725267039633,-158.66,0.00016444,2]
[336965856,1725267039643,-190.21,0.00016501,2]
[336965858,1725267039652,-1000.0,0.00016599,2]
[336965860,1725267039661,-250.0,0.000166,2]
[336965862,1725267039671,-250.0,0.00016697,2]
[336965864,1725267039680,-157.6,0.00016758,2]
[336965866,1725267039689,-475.99,0.00016759,2]
[336965868,1725267039698,-166.85,0.000169,2]
[336965870,1725267039708,-6340.99,0.00016922,2]
[336965872,1725267039717,-96.67058906,0.00017,2]
[336965874,1725267039729,-603.32941094,0.00017,2]
[336965876,1725267039738,-237.90426368,0.00017081,2]
[336966467,1725267045643,-412.95216691,0.00015479,2]
[336966469,1725267045654,-412.95216691,0.00015834,2]
[336966471,1725267045663,-412.95216691,0.00015947,2]
[336966473,1725267045675,-412.95216691,0.00016325,2]
[336966475,1725267045686,-412.95216691,0.00016443,2]
[336966477,1725267045696,-412.95216691,0.00016722,2]
[336966479,1725267045706,-412.95216691,0.00017019,2]
[336966482,1725267045717,-71.12573632,0.00017081,2]
[336966484,1725267045727,-150.0,0.0001726,2]
[336966486,1725267045736,-159.53002968,0.0001726,2]
[336966488,1725267045746,-158.65,0.00017299,2]
[336966490,1725267045756,-412.95216691,0.00017414,2]
[336966492,1725267045766,-412.95216691,0.00017581,2]
[336966494,1725267045777,-159.07,0.00017592,2]
[336966496,1725267045787,-412.95216691,0.00017903,2]
[336966498,1725267045797,-463.0,0.00018,2]
[336966500,1725267045807,-1322.32798158,0.00018,2]
[336966502,1725267045819,-799.52023502,0.00018,2]
[336966504,1725267045828,-167.07,0.00018002,2]
[336966506,1725267045838,-288.875487,0.00018082,2]
[336966508,1725267045847,-412.95216691,0.00018097,2]
[336966510,1725267045858,-10565.43011107,0.00018159,2]
[336966513,1725267045869,-3391.41270362,0.00018159,2]
[336966955,1725267125062,228.87,0.00024837,120]
[336966956,1725267146087,152.21,0.00010959,2]
[336966957,1725267224913,889.0,0.00014,6]
[336966958,1725267291584,355.0,0.00027,120]
[336966959,1725267311054,150.44,0.00013699,2]
[336966960,1725267327910,708.60734885,0.00027,120]
[336966963,1725267613321,153.44,0.0002628,120]
[336966967,1725267900802,150.44,0.00013699,2]
[336967354,1725268110473,156.92,0.00026069,120]
[336967358,1725268231549,-357.78,0.00015532,2]
[336967360,1725268231559,-19.497724,0.00016946,2]
[336967366,1725268231609,-280.502276,0.00016946,2]
[336967368,1725268231619,-7252.38636208,0.00016947,2]
[336967371,1725268231630,-689.30241408,0.00016947,2]
[336967372,1725268231642,-918.87231146,0.00016947,2]
[336967373,1725268231653,-432.70199353,0.00016947,2]
[336967374,1725268231779,-3977.73691885,0.00016947,2]
[336967375,1725268231791,-402.49986393,0.0001706,2]
[336967376,1725268231801,-165.47941094,0.0001716,2]
[336967377,1725268231811,-222.0,0.0001726,2]
[336967378,1725268231820,-250.0,0.00017361,2]
[336967379,1725268231832,-156.92,0.00017379,2]
[336967380,1725268231842,-800.0,0.00017422,2]
[336967381,1725268231851,-11968.63,0.00017478,2]
[336967382,1725268231861,-153.44,0.0001752,2]
[336967383,1725268231870,-157.6,0.00017525,2]
[336967384,1725268231880,-200.0,0.00017732,2]
[336967385,1725268231891,-357.78,0.00017796,2]
[336967386,1725268231900,-237.99,0.00017857,2]
[336967387,1725268231909,-421.04389255,0.00018017,2]
[336967388,1725268231919,-255.0,0.00018063,2]
[336967389,1725268231928,-228.87,0.00018063,2]
[336967390,1725268231937,-166.87,0.00018071,2]
[336967391,1725268231947,-809.55882,0.0001809,2]
[336967393,1725268231956,-809.55882,0.00018159,2]
[336967395,1725268231965,-809.55882,0.0001824,2]
[336967397,1725268231975,-809.55882,0.000184,2]
[336967399,1725268231988,-420.0,0.0001851,2]
[336967401,1725268231997,-166.96,0.00018513,2]
[336967403,1725268232006,-809.55882,0.0001856,2]
[336967405,1725268232016,-809.55883,0.0001871,2]
[336967406,1725268232026,-300.0,0.00018748,2]
[336967407,1725268232036,-4875.0,0.000188,2]
[336967408,1725268232045,-889.0,0.000188,2]
[336967409,1725268232055,-491.6892,0.00018812,2]
[336967410,1725268232064,-260.458,0.00018812,2]
[336967411,1725268232073,-192.7151612,0.00018873,2]
[336967412,1725268232082,-525.07870396,0.00018873,2]
[336967413,1725268232092,-5870.84009495,0.00018898,2]
[336967414,1725268232101,-20481.9560272,0.00018902,2]
[336967415,1725268232110,-150.63,0.00018902,2]
[336967416,1725268232120,-150.63,0.00018902,2]
[336967417,1725268232129,-150.63,0.00018902,2]
[336967418,1725268232138,-150.63,0.00018902,2]
[336967419,1725268232148,-150.63,0.00018902,2]
[336967420,1725268232157,-150.63,0.00018902,2]
[336967421,1725268232167,-150.63,0.00018902,2]
[336967422,1725268232176,-150.63,0.00018902,2]
[336967424,1725268232186,-150.63,0.00018902,2]
[336967425,1725268232195,-150.63,0.00018902,2]
[336967427,1725268232205,-150.63,0.00018902,2]
[336967429,1725268232215,-74126.12267277,0.00018908,2]
[336967431,1725268232224,-1172236.09539691,0.00018912,2]
[336967434,1725268232238,-1068.55450489,0.00018912,2]
[336967437,1725268232258,-445.53443122,0.00018912,2]
[336967442,1725268237728,-2446.29335087,0.00018912,2]
[336967443,1725268237842,-847.77525417,0.00018912,2]
[336967444,1725268237853,-501.01338416,0.00018912,2]
[336967445,1725268237909,-364.16166724,0.00018912,2]
[336967485,1725268238412,156.53,0.00010959,2]
[336967607,1725268239644,-641.30813083,0.00018912,2]
[336968211,1725268245801,-1475.19794836,0.00018912,2]
[336968214,1725268245823,-406.551,0.00018912,2]
[336968871,1725268429616,150.44,0.00013699,2]
[336968872,1725268612851,550.0,0.00011,2]
[336968873,1725268613986,600.0,0.00013,2]
[336968874,1725268615702,200.0,0.00013631,2]
[336968875,1725268853630,159.33,0.00010959,2]
[336968878,1725269238914,343.3,0.00013525,2]
[336968887,1725269256912,5000.0,0.00011,2]
[336968888,1725269279832,1336.12150332,0.0001,2]
[336968892,1725269324336,569.21605591,0.00014,2]
[336968899,1725269431904,-300.0,0.00014999,2]
[336968901,1725269431914,-465.29022052,0.00015,2]
[336968903,1725269432018,-184.70977948,0.00015,2]
[336968904,1725269432027,-118.73589862,0.00015,2]
[336968905,1725269432038,-2900.0,0.00015,2]
[336968906,1725269432165,-1500.7981108,0.00015,2]
[336968907,1725269432178,-480.46599058,0.00015,2]
[336968908,1725269432187,-73.57977929,0.00015371,2]
[336968909,1725269432198,-926.42022071,0.00015371,2]
[336968910,1725269432207,-171.66,0.00015443,2]
[336968911,1725269432216,-1000.0,0.00015585,2]
[336968912,1725269432225,-59.4387695,0.00015789,2]
[336968913,1725269432247,-283.8612305,0.00015789,2]
[336968914,1725269432256,-164.26835704,0.00015912,2]
[336968919,1725269437965,-290.305015,0.00015912,2]
[336968920,1725269438036,-545.42662796,0.00015912,2]
[336968921,1725269438046,-420.0,0.00016416,2]
[336968922,1725269438056,-144.33949457,0.0001664,2]
[336968923,1725269438168,-855.66050543,0.0001664,2]
[336968924,1725269438178,-700.0,0.00017,2]
[336968925,1725269438188,-201.6933,0.00017492,2]
[336968926,1725269438197,-250.0,0.00017512,2]
[336968927,1725269438206,-576.23331908,0.00017512,2]
[336969095,1725269440242,-43.15668092,0.00017512,2]
[336969097,1725269440251,-259.987938,0.00017534,2]
[336969099,1725269440260,-640.0,0.00017538,2]
[336969100,1725269440269,-159.33,0.00017592,2]
[336969101,1725269440279,-383.79,0.00017592,2]
[336969103,1725269440288,-157.6,0.0001761,2]
[336969104,1725269440297,-237.99,0.00017642,2]
[336969106,1725269440306,-587.0,0.00017966,2]
[336969108,1725269440315,-5700.0,0.00018,2]
[336969109,1725269440324,-171.66,0.00018017,2]
[336969111,1725269440333,-174.03,0.00018035,2]
[336969113,1725269440342,-343.3,0.00018053,2]
[336969114,1725269440352,-360.0,0.00018064,2]
[336969116,1725269440360,-258.6,0.00018082,2]
[336969118,1725269440369,-1000.0,0.00018127,2]
[336969119,1725269440378,-843.8,0.00018301,2]
[336969121,1725269440387,-259.987938,0.00018356,2]
[336969123,1725269440396,-56.29250508,0.000184,2]
[336969530,1725269444677,168.74,0.00010959,2]
[336969672,1725269446012,-325.58616804,0.000184,2]
[336969849,1725269565136,150.0,0.00014899,2]
[336969850,1725269703182,158.0939784,0.00010973,2]
[336969851,1725269765571,367.56,0.00013525,2]
[336969853,1725270040487,155.2,0.00010959,2]
[336969854,1725270346090,349.18,0.000146,2]
[336969855,1725270418553,550.0,0.00011,2]
[336969856,1725270419654,600.0,0.00013,2]
[336969884,1725270632282,-195.53,0.00015443,2]
[336969885,1725270632292,-6315.368581,0.000156,2]
[336969886,1725270632370,-1047.0,0.000156,2]
[336969887,1725270632382,-12480.92306323,0.000156,2]
[336969888,1725270632456,-324.2343219,0.000156,2]
[336969889,1725270632469,-19111.47403387,0.000156,2]
[336969890,1725270632480,-167.3,0.00015906,2]
[336969891,1725270632490,-11505.0,0.000161,3]
[336969892,1725270632500,-2751.0,0.00016131,2]
[336969893,1725270632509,-200.0,0.00016149,2]
[336969894,1725270632520,-200.0,0.000165,2]
[336969895,1725270632530,-813.73,0.00016508,2]
[336969896,1725270632539,-250.0,0.00016553,2]
[336969897,1725270632550,-250.0,0.00016558,2]
[336969898,1725270632559,-11505.0,0.000166,5]
[336969899,1725270632569,-150.0,0.00016603,2]
[336969900,1725270632579,-250.0,0.0001662,2]
[336969901,1725270632590,-150.0,0.00016622,2]
[336969902,1725270632600,-1852.42,0.00016623,2]
[336969903,1725270632610,-499.99,0.00016623,2]
[336969904,1725270632620,-1000.0,0.00016637,2]
[336969905,1725270632629,-150.4,0.00016637,2]
[336969906,1725270632640,-166.85,0.00016645,2]
[336969907,1725270632649,-156.94,0.00016681,2]
[336969908,1725270632659,-321.46,0.00016688,2]
[336969909,1725270632669,-349.18,0.00016864,2]
[336969910,1725270632679,-494.55,0.00016976,3]
[336969911,1725270632689,-495.16319646,0.00016982,2]
[336969912,1725270632699,-122839.06,0.00016986,2]
[336969913,1725270632709,-207.99035,0.00016986,2]
[336969914,1725270632720,-940.36,0.00017096,2]
[336969915,1725270632730,-940.36,0.00017101,2]
[336969916,1725270632740,-940.36,0.00017105,2]
[336969917,1725270632752,-940.36,0.0001711,2]
[336969918,1725270632761,-940.36,0.00017114,2]
[336969919,1725270632770,-940.36,0.00017119,2]
[336969920,1725270632780,-940.36,0.00017123,2]
[336969921,1725270632790,-940.36,0.00017128,2]
[336969922,1725270632799,-940.36,0.00017132,2]
[336969923,1725270632809,-940.36,0.00017137,2]
[336969924,1725270632819,-1285.713,0.00017141,2]
[336969925,1725270632828,-940.36,0.00017141,2]
[336969926,1725270632839,-940.36,0.00017146,2]
[336969927,1725270632854,-940.36,0.0001715,2]
[336969928,1725270632868,-940.36,0.00017155,2]
[336969929,1725270632878,-940.36,0.00017159,2]
[336969930,1725270632888,-940.36,0.00017164,2]
[336969931,1725270632900,-940.36,0.00017168,2]
[336969932,1725270632910,-940.36,0.00017173,2]
[336969933,1725270632920,-940.36,0.00017177,2]
[336969934,1725270632930,-940.36,0.00017182,2]
[336969935,1725270632939,-209.63,0.000173,2]
[336969936,1725270632950,-195.53,0.00017373,2]
[336969937,1725270632960,-167.07,0.00017608,2]
[336969938,1725270632971,-153.57,0.00017616,2]
[336969939,1725270632982,-150.0,0.00017616,2]
[336969940,1725270632992,-150.0,0.00017616,2]
[336969941,1725270633003,-150.0,0.00017616,2]
[336969942,1725270633014,-150.0,0.00017616,2]
[336969943,1725270633024,-357.23,0.00017616,2]
[336969944,1725270633034,-173.13,0.00017616,2]
[336969945,1725270633045,-427.25,0.00017616,2]
[336969946,1725270633055,-150.0,0.00017616,2]
[336969947,1725270633065,-150.0,0.00017616,2]
[336969948,1725270633076,-357.23,0.00017616,2]
[336969949,1725270633087,-427.25,0.00017616,2]
[336969950,1725270633098,-150.0,0.00017616,2]
[336969951,1725270633109,-150.0,0.00017616,2]
[336969952,1725270633119,-251.95,0.00017616,2]
[336969953,1725270633130,-150.0,0.00017616,2]
[336969954,1725270633141,-427.25,0.00017616,2]
[336969955,1725270633151,-150.0,0.00017616,2]
[336969956,1725270633162,-150.0,0.00017616,2]
[336969957,1725270633172,-150.0,0.00017616,2]
[336969958,1725270633183,-166.4392,0.000177,2]
[336969959,1725270633194,-207.99035,0.00017808,2]
[336969960,1725270633205,-300.0,0.00017826,2]
[336969961,1725270633216,-10612.573,0.00018,2]
[336969962,1725270633227,-500.0,0.00018178,2]
[336969963,1725270633238,-500.0,0.00018178,2]
[336969964,1725270633253,-500.0,0.00018178,2]
[336969965,1725270633264,-180.6,0.00018178,2]
[336969966,1725270633275,-474.11,0.00018178,2]
[336969967,1725270633286,-408.9063041,0.00018233,2]
[336969968,1725270633297,-2000.0,0.000184,2]
[336969969,1725270633308,-200.0,0.000184,2]
[336969970,1725270633318,-349.07222,0.000184,2]
[336969971,1725270633329,-2000.0,0.000184,2]
[336969972,1725270633339,-200.0,0.000184,2]
[336969973,1725270633354,-150.0,0.00018438,2]
[336969974,1725270633366,-150.0,0.00018438,2]
[336969975,1725270633376,-427.25,0.00018438,2]
[336969976,1725270633390,-150.0,0.00018438,2]
[336969977,1725270633401,-150.0,0.00018438,2]
[336969978,1725270633412,-150.0,0.00018438,2]
[336969979,1725270633422,-150.0,0.00018438,2]
[336969980,1725270633432,-427.25,0.00018438,2]
[336969981,1725270633442,-300.86,0.00018438,2]
[336969982,1725270633452,-427.25,0.00018438,2]
[336969983,1725270633462,-301.04,0.00018438,2]
[336969984,1725270633473,-150.0,0.00018438,2]
[336969985,1725270633484,-150.0,0.00018438,2]
[336969986,1725270633496,-427.25,0.00018438,2]
[336969987,1725270633506,-150.0,0.00018438,2]
[336969988,1725270633516,-214.21,0.00018438,2]
[336969989,1725270633526,-150.0,0.00018438,2]
[336969990,1725270633537,-150.0,0.00018438,2]
[336969991,1725270633548,-150.0,0.00018438,2]
[336969992,1725270633558,-150.0,0.00018438,2]
[336969993,1725270633569,-150.0,0.00018438,2]
[336969994,1725270633579,-150.0,0.00018438,2]
[336969995,1725270633589,-200.0,0.00018584,2]
[336969996,1725270633606,-2000.0,0.00018584,2]
[336969997,1725270633619,-200.0,0.00018584,2]
[336969998,1725270633629,-493.13107045,0.00018587,2]
[336969999,1725270633639,-1304.9324,0.00018587,2]
[336970000,1725270633649,-3770.3664,0.00018587,2]
[336970001,1725270633659,-207.99035,0.0001863,2]
[336970002,1725270633669,-166.91,0.00018656,2]
[336970003,1725270633678,-33445.44241764,0.00018687,2]
[336970004,1725270633692,-969.24680778,0.00018687,2]
[336970005,1725270633704,-347.40099992,0.00018687,2]
[336970006,1725270637123,174.03,0.00026939,120]
[336970013,1725270638172,-174.03,0.00017959,2]
[336970014,1725270638182,-158.95204402,0.00018687,2]
[336970015,1725270638194,-329.5347003,0.00018687,2]
[336970016,1725270638206,-64749.42303034,0.00018687,2]
[336970017,1725270638215,-371.2717,0.00018687,2]
[336970018,1725270638224,-726.03842306,0.00018712,2]
[336970019,1725270638233,-358.67621711,0.00018712,2]
[336970020,1725270638242,-1000.0,0.00018716,2]
[336970021,1725270638251,-493.13107043,0.00018733,2]
[336970022,1725270638260,-200.0,0.0001877,2]
[336970023,1725270638270,-200.0,0.0001877,2]
[336970024,1725270638279,-10834.64169506,0.00018787,2]
[336970025,1725270638294,-1602.06317481,0.00018787,2]
[336970026,1725270638344,-6833.76169356,0.00018787,2]
[336970027,1725270638357,-6050.72207205,0.00018787,2]
[336970028,1725270638462,-1607.58459166,0.00018787,2]
[336970036,1725270640162,-1439.21534214,0.00018787,2]
[336970037,1725270640174,-628.85,0.00018787,2]
[336970038,1725270640219,-28514.46918278,0.00018787,2]
[336970039,1725270640228,-4576.0,0.000188,2]
[336970040,1725270640239,-257.72301851,0.00018802,2]
[336970041,1725270640251,-151.0,0.00018812,2]
[336970042,1725270640261,-151.0,0.00018812,2]
[336970043,1725270640272,-151.0,0.00018812,2]
[336970044,1725270640281,-151.0,0.00018812,2]
[336970045,1725270640292,-1259.9875,0.00018812,2]
[336970046,1725270640302,-35694.4368,0.00018812,2]
[336970047,1725270640311,-1000.0,0.00018812,2]
[336970048,1725270640320,-2027.8794,0.00018812,2]
[336970049,1725270640330,-10000.0,0.00018819,2]
[336970050,1725270640342,-735.43153645,0.00018823,2]
[336970051,1725270640352,-735.43153645,0.0001883,2]
[336970052,1725270640367,-153.15849413,0.00018836,2]
[336970053,1725270640378,-735.43153645,0.00018836,2]
[336970054,1725270640388,-171.85912976,0.00018862,2]
[336970055,1725270640398,-493.13107043,0.00018879,2]
[336970056,1725270640407,-726.038423,0.00018882,2]
[336970057,1725270640416,-1546.33811106,0.00018902,2]
[336970058,1725270640425,-150.63,0.00018902,2]
[336970059,1725270640434,-150.63,0.00018902,2]
[336970060,1725270640444,-150.63,0.00018902,2]
[336970061,1725270640453,-150.63,0.00018902,2]
[336970062,1725270640463,-2402.00740994,0.00018909,2]
[336970063,1725270640473,-218.40329671,0.00018911,2]
[336970064,1725270640483,-246.47762006,0.00018911,2]
[336970065,1725270640493,-592.0,0.00018912,2]
[336970066,1725270640503,-151.0,0.00018912,2]
[336970067,1725270640513,-151.0,0.00018912,2]
[336970068,1725270640522,-151.0,0.00018912,2]
[336970069,1725270640533,-151.0,0.00018912,2]
[336970070,1725270640542,-2000.0,0.00018912,2]
[336970071,1725270640551,-151.0,0.00018912,2]
[336970072,1725270640562,-151.0,0.00018912,2]
[336970073,1725270640571,-151.0,0.00018912,2]
[336970074,1725270640580,-200.0,0.00018912,2]
[336970075,1725270640590,-151.0,0.00018912,2]
[336970076,1725270640600,-151.0,0.00018912,2]
[336970077,1725270640612,-151.0,0.00018912,2]
[336970078,1725270640621,-151.0,0.00018912,2]
[336970079,1725270640630,-151.0,0.00018912,2]
[336970080,1725270640639,-151.198393,0.00018912,2]
[336970081,1725270640648,-290.113183,0.00018912,2]
[336970082,1725270640657,-164.097026,0.00018912,2]
[336970083,1725270640667,-151.0,0.00018912,2]
[336970084,1725270640677,-151.0,0.00018912,2]
[336970085,1725270640686,-151.0,0.00018912,2]
[336970086,1725270640695,-151.0,0.00018912,2]
[336970087,1725270640703,-664.147875,0.00018912,2]
[336970088,1725270640713,-664.147875,0.00018912,2]
[336970089,1725270640722,-664.147875,0.00018912,2]
[336970090,1725270640732,-664.147875,0.00018912,2]
[336970091,1725270640742,-151.0,0.00018912,2]
[336970092,1725270640751,-151.0,0.00018912,2]
[336970093,1725270640759,-154.554499,0.00018912,2]
[336970094,1725270640768,-151.0,0.00018912,2]
[336970095,1725270640777,-151.0,0.00018912,2]
[336970096,1725270640787,-151.0,0.00018912,2]
[336970097,1725270640798,-151.0,0.00018912,2]
[336970098,1725270640808,-301.443166,0.00018912,2]
[336970099,1725270640817,-151.0,0.00018912,2]
[336970100,1725270640825,-151.0,0.00018912,2]
[336970101,1725270640836,-151.0,0.00018912,2]
[336970102,1725270640846,-151.0,0.00018912,2]
[336970103,1725270640859,-151.0,0.00018912,2]
[336970104,1725270640868,-162.730108,0.00018912,2]
[336970105,1725270640877,-151.0,0.00018912,2]
[336970106,1725270640886,-151.0,0.00018912,2]
[336970107,1725270640896,-151.0,0.00018912,2]
[336970108,1725270640904,-151.0,0.00018912,2]
[336970109,1725270640913,-716.542794,0.00018912,2]
[336970110,1725270640922,-716.542794,0.00018912,2]
[336970111,1725270640931,-159.168712,0.00018912,2]
[336970112,1725270640940,-151.0,0.00018912,2]
[336970113,1725270640950,-151.0,0.00018912,2]
[336970114,1725270640959,-151.0,0.00018912,2]
[336970115,1725270640968,-151.0,0.00018912,2]
[336970116,1725270640979,-718165.98978437,0.00018912,2]
[336970117,1725270640989,-150.63,0.00018913,2]
[336970118,1725270640999,-2402.00740994,0.0001892,2]
[336970119,1725270641009,-22227.5280482,0.00018923,2]
[336970120,1725270641018,-41385.0007542,0.00018936,2]
[336970121,1725270641028,-15282.1328167,0.00018949,2]
[336970122,1725270641037,-4655.5014966,0.00018949,2]
[336970123,1725270641046,-248.24642,0.00018949,2]
[336970124,1725270641055,-151.0,0.00018949,2]
[336970125,1725270641064,-200.0,0.00018958,2]
[336970126,1725270641073,-200.0,0.00018958,2]
[336970127,1725270641082,-500.0,0.00018973,2]
[336970128,1725270641091,-160.14625849,0.00018973,2]
[336970129,1725270641101,-160.14275886,0.00018973,2]
[336970130,1725270641115,-159.73886499,0.00018973,2]
[336970131,1725270641125,-160.13873642,0.00018973,2]
[336970132,1725270641134,-300.27423492,0.00018973,2]
[336970133,1725270641143,-158.11614292,0.00018973,2]
[336970134,1725270641153,-160.14070007,0.00018973,2]
[336970135,1725270641162,-158.11614292,0.00018973,2]
[336970136,1725270641171,-160.13873642,0.00018973,2]
[336970137,1725270641181,-160.14625848,0.00018973,2]
[336970138,1725270641191,-160.11761312,0.00018973,2]
[336970139,1725270641199,-160.14625849,0.00018973,2]
[336970140,1725270641208,-160.13921303,0.00018973,2]
[336970141,1725270641218,-550.47854475,0.00018973,2]
[336970142,1725270641227,-160.11761309,0.00018973,2]
[336970143,1725270641236,-160.14625849,0.00018973,2]
[336970144,1725270641246,-165.11476971,0.00018973,2]
[336970145,1725270641255,-160.1176131,0.00018973,2]
[336970146,1725270641264,-500.0,0.00018973,2]
[336970147,1725270641274,-200.1828231,0.00018973,2]
[336970148,1725270641283,-160.11761309,0.00018973,2]
[336970149,1725270641292,-160.14625862,0.00018973,2]
[336970150,1725270641301,-414.64501244,0.00018973,2]
[336970151,1725270641310,-160.14625849,0.00018973,2]
[336970152,1725270641319,-209.0,0.0001899,2]
[336970153,1725270641329,-151.56419077,0.00018998,2]
[336970154,1725270641338,-300.0,0.00019,2]
[336970155,1725270641348,-493.13107043,0.00019025,2]
[336970156,1725270641363,-726.038423,0.00019051,2]
[336970157,1725270641372,-151.0,0.00019068,2]
[336970158,1725270641384,-151.0,0.00019068,2]
[336970159,1725270641394,-151.0,0.0001907,2]
[336970160,1725270641404,-151.0,0.0001907,2]
[336970161,1725270641414,-151.0,0.0001907,2]
[336970162,1725270641423,-151.0,0.0001907,2]
[336970163,1725270641433,-716.542794,0.0001907,2]
[336970164,1725270641445,-716.542794,0.0001907,2]
[336970165,1725270641455,-166.230843,0.0001907,2]
[336970166,1725270641464,-151.0,0.0001907,2]
[336970167,1725270641474,-199.73100076,0.00019078,2]
[336970168,1725270641484,-273.64164884,0.00019078,2]
[336970169,1725270641495,-261.646,0.00019078,2]
[336970170,1725270641504,-497.0,0.000191,2]
[336970171,1725270641514,-2901.8710852,0.000191,2]
[336970172,1725270641523,-2000.0,0.000191,2]
[336970173,1725270641533,-2000.0,0.00019101,2]
[336970174,1725270641542,-200.0,0.00019101,2]
[336970175,1725270641552,-2193.168867,0.0001911,2]
[336970176,1725270641561,-3709.20537059,0.00019121,10]
[336970177,1725270641572,-349.18,0.00019128,2]
[336970178,1725270641581,-200.0,0.00019147,2]
[336970179,1725270641591,-200.0,0.00019147,2]
[336970180,1725270641600,-203.0,0.00019148,30]
[336970181,1725270641616,-203.0,0.00019158,30]
[336970182,1725270641626,-150.63,0.00019168,2]
[336970183,1725270641635,-203.0,0.00019168,30]
[336970184,1725270641645,-150.0,0.00019168,2]
[336970185,1725270641655,-151.0,0.00019168,2]
[336970186,1725270641664,-664.147875,0.00019168,2]
[336970187,1725270641674,-664.147875,0.00019168,2]
[336970188,1725270641683,-151.0,0.00019168,2]
[336970189,1725270641692,-151.0,0.00019168,2]
[336970190,1725270641701,-151.0,0.00019168,2]
[336970191,1725270641710,-217.818387,0.00019168,2]
[336970192,1725270641719,-151.0,0.00019168,2]
[336970193,1725270641729,-151.0,0.00019168,2]
[336970194,1725270641738,-151.0,0.00019168,2]
[336970195,1725270641748,-224.016089,0.00019168,2]
[336970196,1725270641757,-175.137272,0.00019168,2]
[336970197,1725270641766,-716.542794,0.00019168,2]
[336970198,1725270641775,-716.542794,0.00019168,2]
[336970199,1725270641785,-151.0,0.00019168,2]
[336970200,1725270641794,-150.63,0.00019168,2]
[336970201,1725270641803,-28657.63463871,0.0001917,2]
[336970202,1725270641813,-151.0,0.0001917,2]